{"text_format":"3","workbook":"xlsx","n_sheets":3,"sheets":["Mesečno poročilo o proračunu","Mesečni stroški","Dodatni podatki"],"not_rendered":{"charts":1,"defined_names":4,"pivot_tables":2},"read":"whole","date_system":"1900"}

{"sheet":"Mesečno poročilo o proračunu","index":0,"n_rows":34,"n_cols":13,"rows_kept":34,"merged":[[7,1,10,1],[7,5,10,5],[7,6,10,6],[12,1,16,1],[12,5,16,5],[12,6,16,6]]}
[null,"Pregled proračuna",{"$nulls":7},"Povzetek proračuna"]
[null,"Bilanca"]
[null,"Predvidena bilanca","(Predvideno z odštetimi stroški)",{"$nulls":3},{"$f":"D17-SUM(PodrobnostiProračuna[Predvideni stroški])","v":{"v":1585,"d":"1,585 €"}}]
[null,"Dejanska bilanca","(Dejansko z odštetimi stroški)",{"$nulls":3},{"$f":"D11-SUM(PodrobnostiProračuna[Dejanski stroški])","v":{"v":1740,"d":"1,740 €"}}]
[null,"Razlika","(Dejansko minus predvideno)",{"$nulls":3},{"$f":"G4-G3","v":{"v":155,"d":"155 €"}}]
[]
[null,"Dohodek",{"$nulls":3},"Stroški",{"$nulls":3},"Z desno tipko miške kliknite spodnjo vrtilno tabelo in nato Osveži, če želite posodobiti podatke"]
[null,"DEJANSKO","Dohodek 1",{"v":5800,"d":"5,800 €"},null,"DEJANSKO",{"$f":"SUM(PodrobnostiProračuna[Dejanski stroški])","v":{"v":7860,"d":"7,860 €"}}]
[null,null,"Dohodek 2",{"v":2300,"d":"2,300 €"},{"$nulls":5},"Kategorija","Vsota od Predvideni stroški","Vsota od Dejanski stroški","Vsota od Razlika"]
[null,null,"Dodatni prihodek",{"v":1500,"d":"1,500 €"},{"$nulls":5},"Otroci",{"v":140,"d":"140 €"},{"v":140,"d":"140 €"},{"v":0,"d":"0 €"}]
[null,null,"Skupni prihodki",{"$f":"SUM(D8:D10)","v":{"v":9600,"d":"9,600 €"}}]
[{"$nulls":9},"Zabava",{"v":400,"d":"400 €"},{"v":358,"d":"358 €"},{"v":42,"d":"42 €"}]
[null,"PREDVIDENO",{"$nulls":3},"PREDVIDENO",{"$f":"SUM(PodrobnostiProračuna[Predvideni stroški])","v":{"v":7915,"d":"7,915 €"}}]
[null,null,"Dohodek 1",{"v":6000,"d":"6,000 €"},{"$nulls":5},"Hrana",{"v":1100,"d":"1,100 €"},{"v":1320,"d":"1,320 €"},{"v":-220,"d":"-220 €"}]
[null,null,"Dohodek 2",{"v":1000,"d":"1,000 €"}]
[null,null,"Dodatni prihodek",{"v":2500,"d":"2,500 €"},{"$nulls":5},"Darila in dobrodelnost",{"v":100,"d":"100 €"},{"v":125,"d":"125 €"},{"v":-25,"d":"-25 €"}]
[null,null,"Skupni prihodki",{"$f":"SUM(D14:D16)","v":{"v":9500,"d":"9,500 €"}}]
[{"$nulls":9},"Bivališče",{"v":2830,"d":"2,830 €"},{"v":2702,"d":"2,702 €"},{"v":128,"d":"128 €"}]
[]
[{"$nulls":9},"Zavarovanje",{"v":900,"d":"900 €"},{"v":900,"d":"900 €"},{"v":0,"d":"0 €"}]
[]
[{"$nulls":9},"Posojila",{"v":200,"d":"200 €"},{"v":200,"d":"200 €"},{"v":0,"d":"0 €"}]
[]
[{"$nulls":9},"Osebna nega",{"v":150,"d":"150 €"},{"v":140,"d":"140 €"},{"v":10,"d":"10 €"}]
[]
[{"$nulls":9},"Domači ljubljenčki",{"v":170,"d":"170 €"},{"v":100,"d":"100 €"},{"v":70,"d":"70 €"}]
[]
[{"$nulls":9},"Prihranki ali investicije",{"v":200,"d":"200 €"},{"v":200,"d":"200 €"},{"v":0,"d":"0 €"}]
[]
[{"$nulls":9},"Davki",{"v":300,"d":"300 €"},{"v":300,"d":"300 €"},{"v":0,"d":"0 €"}]
[]
[{"$nulls":9},"Prevoz",{"v":1425,"d":"1,425 €"},{"v":1375,"d":"1,375 €"},{"v":50,"d":"50 €"}]
[]
[{"$nulls":9},"Skupna vsota",{"v":7915,"d":"7,915 €"},{"v":7860,"d":"7,860 €"},{"v":55,"d":"55 €"}]

{"sheet":"Mesečni stroški","index":1,"n_rows":62,"n_cols":7,"rows_kept":62}
[null,"Mesečni stroški"]
[null,"Opis","Kategorija","Predvideni stroški","Dejanski stroški","Razlika","Pregled dejanskih stroškov"]
[null,"Prostočasne dejavnosti","Otroci",{"v":40,"d":"40 €"},{"v":40,"d":"40 €"},{"$f":"PodrobnostiProračuna[[#This Row],[Predvideni stroški]]-PodrobnostiProračuna[[#This Row],[Dejanski stroški]]","v":{"v":0,"d":"0 €"}},{"$f":"PodrobnostiProračuna[[#This Row],[Dejanski stroški]]","v":{"v":40,"d":"40 €"}}]
[null,"Zdravnik","Otroci",null,null,{"$f":"PodrobnostiProračuna[[#This Row],[Predvideni stroški]]-PodrobnostiProračuna[[#This Row],[Dejanski stroški]]","v":{"v":0,"d":"0 €"}},{"$f":"PodrobnostiProračuna[[#This Row],[Dejanski stroški]]","v":{"v":0,"d":"0 €"}}]
[null,"Šolske potrebščine","Otroci",null,null,{"$f":"PodrobnostiProračuna[[#This Row],[Predvideni stroški]]-PodrobnostiProračuna[[#This Row],[Dejanski stroški]]","v":{"v":0,"d":"0 €"}},{"$f":"PodrobnostiProračuna[[#This Row],[Dejanski stroški]]","v":{"v":0,"d":"0 €"}}]
[null,"Šolnina","Otroci",{"v":100,"d":"100 €"},{"v":100,"d":"100 €"},{"$f":"PodrobnostiProračuna[[#This Row],[Predvideni stroški]]-PodrobnostiProračuna[[#This Row],[Dejanski stroški]]","v":{"v":0,"d":"0 €"}},{"$f":"PodrobnostiProračuna[[#This Row],[Dejanski stroški]]","v":{"v":100,"d":"100 €"}}]
[null,"Koncerti","Zabava",{"v":50,"d":"50 €"},{"v":40,"d":"40 €"},{"$f":"PodrobnostiProračuna[[#This Row],[Predvideni stroški]]-PodrobnostiProračuna[[#This Row],[Dejanski stroški]]","v":{"v":10,"d":"10 €"}},{"$f":"PodrobnostiProračuna[[#This Row],[Dejanski stroški]]","v":{"v":40,"d":"40 €"}}]
[null,"Gledališče","Zabava",{"v":200,"d":"200 €"},{"v":150,"d":"150 €"},{"$f":"PodrobnostiProračuna[[#This Row],[Predvideni stroški]]-PodrobnostiProračuna[[#This Row],[Dejanski stroški]]","v":{"v":50,"d":"50 €"}},{"$f":"PodrobnostiProračuna[[#This Row],[Dejanski stroški]]","v":{"v":150,"d":"150 €"}}]
[null,"Filmi","Zabava",{"v":50,"d":"50 €"},{"v":28,"d":"28 €"},{"$f":"PodrobnostiProračuna[[#This Row],[Predvideni stroški]]-PodrobnostiProračuna[[#This Row],[Dejanski stroški]]","v":{"v":22,"d":"22 €"}},{"$f":"PodrobnostiProračuna[[#This Row],[Dejanski stroški]]","v":{"v":28,"d":"28 €"}}]
[null,"Glasba (CD-ji, prenosi itd.)","Zabava",{"v":50,"d":"50 €"},{"v":30,"d":"30 €"},{"$f":"PodrobnostiProračuna[[#This Row],[Predvideni stroški]]-PodrobnostiProračuna[[#This Row],[Dejanski stroški]]","v":{"v":20,"d":"20 €"}},{"$f":"PodrobnostiProračuna[[#This Row],[Dejanski stroški]]","v":{"v":30,"d":"30 €"}}]
[null,"Športni dogodki","Zabava",{"v":0,"d":"0 €"},{"v":40,"d":"40 €"},{"$f":"PodrobnostiProračuna[[#This Row],[Predvideni stroški]]-PodrobnostiProračuna[[#This Row],[Dejanski stroški]]","v":{"v":-40,"d":"-40 €"}},{"$f":"PodrobnostiProračuna[[#This Row],[Dejanski stroški]]","v":{"v":40,"d":"40 €"}}]
[null,"Video/DVD (nakup)","Zabava",{"v":20,"d":"20 €"},{"v":50,"d":"50 €"},{"$f":"PodrobnostiProračuna[[#This Row],[Predvideni stroški]]-PodrobnostiProračuna[[#This Row],[Dejanski stroški]]","v":{"v":-30,"d":"-30 €"}},{"$f":"PodrobnostiProračuna[[#This Row],[Dejanski stroški]]","v":{"v":50,"d":"50 €"}}]
[null,"Video/DVD (izposoja)","Zabava",{"v":30,"d":"30 €"},{"v":20,"d":"20 €"},{"$f":"PodrobnostiProračuna[[#This Row],[Predvideni stroški]]-PodrobnostiProračuna[[#This Row],[Dejanski stroški]]","v":{"v":10,"d":"10 €"}},{"$f":"PodrobnostiProračuna[[#This Row],[Dejanski stroški]]","v":{"v":20,"d":"20 €"}}]
[null,"Restavracije","Hrana",{"v":1000,"d":"1,000 €"},{"v":1200,"d":"1,200 €"},{"$f":"PodrobnostiProračuna[[#This Row],[Predvideni stroški]]-PodrobnostiProračuna[[#This Row],[Dejanski stroški]]","v":{"v":-200,"d":"-200 €"}},{"$f":"PodrobnostiProračuna[[#This Row],[Dejanski stroški]]","v":{"v":1200,"d":"1,200 €"}}]
[null,"Živila","Hrana",{"v":100,"d":"100 €"},{"v":120,"d":"120 €"},{"$f":"PodrobnostiProračuna[[#This Row],[Predvideni stroški]]-PodrobnostiProračuna[[#This Row],[Dejanski stroški]]","v":{"v":-20,"d":"-20 €"}},{"$f":"PodrobnostiProračuna[[#This Row],[Dejanski stroški]]","v":{"v":120,"d":"120 €"}}]
[null,"Dobrodelni prispevki 1","Darila in dobrodelnost",{"v":75,"d":"75 €"},{"v":100,"d":"100 €"},{"$f":"PodrobnostiProračuna[[#This Row],[Predvideni stroški]]-PodrobnostiProračuna[[#This Row],[Dejanski stroški]]","v":{"v":-25,"d":"-25 €"}},{"$f":"PodrobnostiProračuna[[#This Row],[Dejanski stroški]]","v":{"v":100,"d":"100 €"}}]
[null,"Dobrodelni prispevki 2","Darila in dobrodelnost",{"v":25,"d":"25 €"},{"v":25,"d":"25 €"},{"$f":"PodrobnostiProračuna[[#This Row],[Predvideni stroški]]-PodrobnostiProračuna[[#This Row],[Dejanski stroški]]","v":{"v":0,"d":"0 €"}},{"$f":"PodrobnostiProračuna[[#This Row],[Dejanski stroški]]","v":{"v":25,"d":"25 €"}}]
[null,"Darilo 1","Darila in dobrodelnost",null,null,{"$f":"PodrobnostiProračuna[[#This Row],[Predvideni stroški]]-PodrobnostiProračuna[[#This Row],[Dejanski stroški]]","v":{"v":0,"d":"0 €"}},{"$f":"PodrobnostiProračuna[[#This Row],[Dejanski stroški]]","v":{"v":0,"d":"0 €"}}]
[null,"Darilo 2","Darila in dobrodelnost",null,null,{"$f":"PodrobnostiProračuna[[#This Row],[Predvideni stroški]]-PodrobnostiProračuna[[#This Row],[Dejanski stroški]]","v":{"v":0,"d":"0 €"}},{"$f":"PodrobnostiProračuna[[#This Row],[Dejanski stroški]]","v":{"v":0,"d":"0 €"}}]
[null,"Kabelska/satelitska televizija","Bivališče",{"v":100,"d":"100 €"},{"v":100,"d":"100 €"},{"$f":"PodrobnostiProračuna[[#This Row],[Predvideni stroški]]-PodrobnostiProračuna[[#This Row],[Dejanski stroški]]","v":{"v":0,"d":"0 €"}},{"$f":"PodrobnostiProračuna[[#This Row],[Dejanski stroški]]","v":{"v":100,"d":"100 €"}}]
[null,"Elektrika","Bivališče",{"v":45,"d":"45 €"},{"v":50,"d":"50 €"},{"$f":"PodrobnostiProračuna[[#This Row],[Predvideni stroški]]-PodrobnostiProračuna[[#This Row],[Dejanski stroški]]","v":{"v":-5,"d":"-5 €"}},{"$f":"PodrobnostiProračuna[[#This Row],[Dejanski stroški]]","v":{"v":50,"d":"50 €"}}]
[null,"Plin","Bivališče",{"v":300,"d":"300 €"},{"v":400,"d":"400 €"},{"$f":"PodrobnostiProračuna[[#This Row],[Predvideni stroški]]-PodrobnostiProračuna[[#This Row],[Dejanski stroški]]","v":{"v":-100,"d":"-100 €"}},{"$f":"PodrobnostiProračuna[[#This Row],[Dejanski stroški]]","v":{"v":400,"d":"400 €"}}]
[null,"Čistilni servis","Bivališče",{"v":200,"d":"200 €"},null,{"$f":"PodrobnostiProračuna[[#This Row],[Predvideni stroški]]-PodrobnostiProračuna[[#This Row],[Dejanski stroški]]","v":{"v":200,"d":"200 €"}},{"$f":"PodrobnostiProračuna[[#This Row],[Dejanski stroški]]","v":{"v":0,"d":"0 €"}}]
[null,"Vzdrževanje","Bivališče",{"v":200,"d":"200 €"},{"v":150,"d":"150 €"},{"$f":"PodrobnostiProračuna[[#This Row],[Predvideni stroški]]-PodrobnostiProračuna[[#This Row],[Dejanski stroški]]","v":{"v":50,"d":"50 €"}},{"$f":"PodrobnostiProračuna[[#This Row],[Dejanski stroški]]","v":{"v":150,"d":"150 €"}}]
[null,"Hipoteka ali najemnina","Bivališče",{"v":1700,"d":"1,700 €"},{"v":1700,"d":"1,700 €"},{"$f":"PodrobnostiProračuna[[#This Row],[Predvideni stroški]]-PodrobnostiProračuna[[#This Row],[Dejanski stroški]]","v":{"v":0,"d":"0 €"}},{"$f":"PodrobnostiProračuna[[#This Row],[Dejanski stroški]]","v":{"v":1700,"d":"1,700 €"}}]
[null,"Zemeljski plin/nafta","Bivališče",null,null,{"$f":"PodrobnostiProračuna[[#This Row],[Predvideni stroški]]-PodrobnostiProračuna[[#This Row],[Dejanski stroški]]","v":{"v":0,"d":"0 €"}},{"$f":"PodrobnostiProračuna[[#This Row],[Dejanski stroški]]","v":{"v":0,"d":"0 €"}}]
[null,"Internetna storitev","Bivališče",{"v":100,"d":"100 €"},{"v":100,"d":"100 €"},{"$f":"PodrobnostiProračuna[[#This Row],[Predvideni stroški]]-PodrobnostiProračuna[[#This Row],[Dejanski stroški]]","v":{"v":0,"d":"0 €"}},{"$f":"PodrobnostiProračuna[[#This Row],[Dejanski stroški]]","v":{"v":100,"d":"100 €"}}]
[null,"Telefon (mobilni)","Bivališče",{"v":60,"d":"60 €"},{"v":60,"d":"60 €"},{"$f":"PodrobnostiProračuna[[#This Row],[Predvideni stroški]]-PodrobnostiProračuna[[#This Row],[Dejanski stroški]]","v":{"v":0,"d":"0 €"}},{"$f":"PodrobnostiProračuna[[#This Row],[Dejanski stroški]]","v":{"v":60,"d":"60 €"}}]
[null,"Domači telefon","Bivališče",{"v":35,"d":"35 €"},{"v":39,"d":"39 €"},{"$f":"PodrobnostiProračuna[[#This Row],[Predvideni stroški]]-PodrobnostiProračuna[[#This Row],[Dejanski stroški]]","v":{"v":-4,"d":"-4 €"}},{"$f":"PodrobnostiProračuna[[#This Row],[Dejanski stroški]]","v":{"v":39,"d":"39 €"}}]
[null,"Potrebščine","Bivališče",{"v":40,"d":"40 €"},{"v":55,"d":"55 €"},{"$f":"PodrobnostiProračuna[[#This Row],[Predvideni stroški]]-PodrobnostiProračuna[[#This Row],[Dejanski stroški]]","v":{"v":-15,"d":"-15 €"}},{"$f":"PodrobnostiProračuna[[#This Row],[Dejanski stroški]]","v":{"v":55,"d":"55 €"}}]
[null,"Odvoz komunalnih odpadkov in recikliranje","Bivališče",{"v":25,"d":"25 €"},{"v":22,"d":"22 €"},{"$f":"PodrobnostiProračuna[[#This Row],[Predvideni stroški]]-PodrobnostiProračuna[[#This Row],[Dejanski stroški]]","v":{"v":3,"d":"3 €"}},{"$f":"PodrobnostiProračuna[[#This Row],[Dejanski stroški]]","v":{"v":22,"d":"22 €"}}]
[null,"Vodovod in kanalizacija","Bivališče",{"v":25,"d":"25 €"},{"v":26,"d":"26 €"},{"$f":"PodrobnostiProračuna[[#This Row],[Predvideni stroški]]-PodrobnostiProračuna[[#This Row],[Dejanski stroški]]","v":{"v":-1,"d":"-1 €"}},{"$f":"PodrobnostiProračuna[[#This Row],[Dejanski stroški]]","v":{"v":26,"d":"26 €"}}]
[null,"Zdravstveno","Zavarovanje",{"v":400,"d":"400 €"},{"v":400,"d":"400 €"},{"$f":"PodrobnostiProračuna[[#This Row],[Predvideni stroški]]-PodrobnostiProračuna[[#This Row],[Dejanski stroški]]","v":{"v":0,"d":"0 €"}},{"$f":"PodrobnostiProračuna[[#This Row],[Dejanski stroški]]","v":{"v":400,"d":"400 €"}}]
[null,"Nepremičnina","Zavarovanje",{"v":400,"d":"400 €"},{"v":400,"d":"400 €"},{"$f":"PodrobnostiProračuna[[#This Row],[Predvideni stroški]]-PodrobnostiProračuna[[#This Row],[Dejanski stroški]]","v":{"v":0,"d":"0 €"}},{"$f":"PodrobnostiProračuna[[#This Row],[Dejanski stroški]]","v":{"v":400,"d":"400 €"}}]
[null,"Življenjsko","Zavarovanje",{"v":100,"d":"100 €"},{"v":100,"d":"100 €"},{"$f":"PodrobnostiProračuna[[#This Row],[Predvideni stroški]]-PodrobnostiProračuna[[#This Row],[Dejanski stroški]]","v":{"v":0,"d":"0 €"}},{"$f":"PodrobnostiProračuna[[#This Row],[Dejanski stroški]]","v":{"v":100,"d":"100 €"}}]
[null,"Kreditna kartica 1","Posojila",{"v":200,"d":"200 €"},{"v":200,"d":"200 €"},{"$f":"PodrobnostiProračuna[[#This Row],[Predvideni stroški]]-PodrobnostiProračuna[[#This Row],[Dejanski stroški]]","v":{"v":0,"d":"0 €"}},{"$f":"PodrobnostiProračuna[[#This Row],[Dejanski stroški]]","v":{"v":200,"d":"200 €"}}]
[null,"Kreditna kartica 2","Posojila",null,null,{"$f":"PodrobnostiProračuna[[#This Row],[Predvideni stroški]]-PodrobnostiProračuna[[#This Row],[Dejanski stroški]]","v":{"v":0,"d":"0 €"}},{"$f":"PodrobnostiProračuna[[#This Row],[Dejanski stroški]]","v":{"v":0,"d":"0 €"}}]
[null,"Kreditna kartica 3","Posojila",null,null,{"$f":"PodrobnostiProračuna[[#This Row],[Predvideni stroški]]-PodrobnostiProračuna[[#This Row],[Dejanski stroški]]","v":{"v":0,"d":"0 €"}},{"$f":"PodrobnostiProračuna[[#This Row],[Dejanski stroški]]","v":{"v":0,"d":"0 €"}}]
[null,"Osebno","Posojila",null,null,{"$f":"PodrobnostiProračuna[[#This Row],[Predvideni stroški]]-PodrobnostiProračuna[[#This Row],[Dejanski stroški]]","v":{"v":0,"d":"0 €"}},{"$f":"PodrobnostiProračuna[[#This Row],[Dejanski stroški]]","v":{"v":0,"d":"0 €"}}]
[null,"Študent","Posojila",null,null,{"$f":"PodrobnostiProračuna[[#This Row],[Predvideni stroški]]-PodrobnostiProračuna[[#This Row],[Dejanski stroški]]","v":{"v":0,"d":"0 €"}},{"$f":"PodrobnostiProračuna[[#This Row],[Dejanski stroški]]","v":{"v":0,"d":"0 €"}}]
[null,"Oblačila","Osebna nega",{"v":150,"d":"150 €"},{"v":140,"d":"140 €"},{"$f":"PodrobnostiProračuna[[#This Row],[Predvideni stroški]]-PodrobnostiProračuna[[#This Row],[Dejanski stroški]]","v":{"v":10,"d":"10 €"}},{"$f":"PodrobnostiProračuna[[#This Row],[Dejanski stroški]]","v":{"v":140,"d":"140 €"}}]
[null,"Kemična čistilnica","Osebna nega",null,null,{"$f":"PodrobnostiProračuna[[#This Row],[Predvideni stroški]]-PodrobnostiProračuna[[#This Row],[Dejanski stroški]]","v":{"v":0,"d":"0 €"}},{"$f":"PodrobnostiProračuna[[#This Row],[Dejanski stroški]]","v":{"v":0,"d":"0 €"}}]
[null,"Lasje/nohti","Osebna nega",null,null,{"$f":"PodrobnostiProračuna[[#This Row],[Predvideni stroški]]-PodrobnostiProračuna[[#This Row],[Dejanski stroški]]","v":{"v":0,"d":"0 €"}},{"$f":"PodrobnostiProračuna[[#This Row],[Dejanski stroški]]","v":{"v":0,"d":"0 €"}}]
[null,"Klub zdravja","Osebna nega",null,null,{"$f":"PodrobnostiProračuna[[#This Row],[Predvideni stroški]]-PodrobnostiProračuna[[#This Row],[Dejanski stroški]]","v":{"v":0,"d":"0 €"}},{"$f":"PodrobnostiProračuna[[#This Row],[Dejanski stroški]]","v":{"v":0,"d":"0 €"}}]
[null,"Zdravnik","Osebna nega",null,null,{"$f":"PodrobnostiProračuna[[#This Row],[Predvideni stroški]]-PodrobnostiProračuna[[#This Row],[Dejanski stroški]]","v":{"v":0,"d":"0 €"}},{"$f":"PodrobnostiProračuna[[#This Row],[Dejanski stroški]]","v":{"v":0,"d":"0 €"}}]
[null,"Hrana","Domači ljubljenčki",{"v":150,"d":"150 €"},{"v":75,"d":"75 €"},{"$f":"PodrobnostiProračuna[[#This Row],[Predvideni stroški]]-PodrobnostiProračuna[[#This Row],[Dejanski stroški]]","v":{"v":75,"d":"75 €"}},{"$f":"PodrobnostiProračuna[[#This Row],[Dejanski stroški]]","v":{"v":75,"d":"75 €"}}]
[null,"Nega","Domači ljubljenčki",{"v":20,"d":"20 €"},{"v":25,"d":"25 €"},{"$f":"PodrobnostiProračuna[[#This Row],[Predvideni stroški]]-PodrobnostiProračuna[[#This Row],[Dejanski stroški]]","v":{"v":-5,"d":"-5 €"}},{"$f":"PodrobnostiProračuna[[#This Row],[Dejanski stroški]]","v":{"v":25,"d":"25 €"}}]
[null,"Zdravnik","Domači ljubljenčki",null,null,{"$f":"PodrobnostiProračuna[[#This Row],[Predvideni stroški]]-PodrobnostiProračuna[[#This Row],[Dejanski stroški]]","v":{"v":0,"d":"0 €"}},{"$f":"PodrobnostiProračuna[[#This Row],[Dejanski stroški]]","v":{"v":0,"d":"0 €"}}]
[null,"Igrače","Domači ljubljenčki",null,null,{"$f":"PodrobnostiProračuna[[#This Row],[Predvideni stroški]]-PodrobnostiProračuna[[#This Row],[Dejanski stroški]]","v":{"v":0,"d":"0 €"}},{"$f":"PodrobnostiProračuna[[#This Row],[Dejanski stroški]]","v":{"v":0,"d":"0 €"}}]
[null,"Naložbeni račun","Prihranki ali investicije",{"v":200,"d":"200 €"},{"v":200,"d":"200 €"},{"$f":"PodrobnostiProračuna[[#This Row],[Predvideni stroški]]-PodrobnostiProračuna[[#This Row],[Dejanski stroški]]","v":{"v":0,"d":"0 €"}},{"$f":"PodrobnostiProračuna[[#This Row],[Dejanski stroški]]","v":{"v":200,"d":"200 €"}}]
[null,"Pokojninski račun","Prihranki ali investicije",null,null,{"$f":"PodrobnostiProračuna[[#This Row],[Predvideni stroški]]-PodrobnostiProračuna[[#This Row],[Dejanski stroški]]","v":{"v":0,"d":"0 €"}},{"$f":"PodrobnostiProračuna[[#This Row],[Dejanski stroški]]","v":{"v":0,"d":"0 €"}}]
[null,"Državno","Davki",{"v":300,"d":"300 €"},{"v":300,"d":"300 €"},{"$f":"PodrobnostiProračuna[[#This Row],[Predvideni stroški]]-PodrobnostiProračuna[[#This Row],[Dejanski stroški]]","v":{"v":0,"d":"0 €"}},{"$f":"PodrobnostiProračuna[[#This Row],[Dejanski stroški]]","v":{"v":300,"d":"300 €"}}]
[null,"Lokalno","Davki",null,null,{"$f":"PodrobnostiProračuna[[#This Row],[Predvideni stroški]]-PodrobnostiProračuna[[#This Row],[Dejanski stroški]]","v":{"v":0,"d":"0 €"}},{"$f":"PodrobnostiProračuna[[#This Row],[Dejanski stroški]]","v":{"v":0,"d":"0 €"}}]
[null,"Država","Davki",null,null,{"$f":"PodrobnostiProračuna[[#This Row],[Predvideni stroški]]-PodrobnostiProračuna[[#This Row],[Dejanski stroški]]","v":{"v":0,"d":"0 €"}},{"$f":"PodrobnostiProračuna[[#This Row],[Dejanski stroški]]","v":{"v":0,"d":"0 €"}}]
[null,"Cena prevoza s taksijem/avtobusom","Prevoz",{"v":100,"d":"100 €"},{"v":150,"d":"150 €"},{"$f":"PodrobnostiProračuna[[#This Row],[Predvideni stroški]]-PodrobnostiProračuna[[#This Row],[Dejanski stroški]]","v":{"v":-50,"d":"-50 €"}},{"$f":"PodrobnostiProračuna[[#This Row],[Dejanski stroški]]","v":{"v":150,"d":"150 €"}}]
[null,"Gorivo","Prevoz",{"v":450,"d":"450 €"},{"v":400,"d":"400 €"},{"$f":"PodrobnostiProračuna[[#This Row],[Predvideni stroški]]-PodrobnostiProračuna[[#This Row],[Dejanski stroški]]","v":{"v":50,"d":"50 €"}},{"$f":"PodrobnostiProračuna[[#This Row],[Dejanski stroški]]","v":{"v":400,"d":"400 €"}}]
[null,"Zavarovanje","Prevoz",{"v":300,"d":"300 €"},{"v":300,"d":"300 €"},{"$f":"PodrobnostiProračuna[[#This Row],[Predvideni stroški]]-PodrobnostiProračuna[[#This Row],[Dejanski stroški]]","v":{"v":0,"d":"0 €"}},{"$f":"PodrobnostiProračuna[[#This Row],[Dejanski stroški]]","v":{"v":300,"d":"300 €"}}]
[null,"Licenciranje","Prevoz",{"v":25,"d":"25 €"},{"v":25,"d":"25 €"},{"$f":"PodrobnostiProračuna[[#This Row],[Predvideni stroški]]-PodrobnostiProračuna[[#This Row],[Dejanski stroški]]","v":{"v":0,"d":"0 €"}},{"$f":"PodrobnostiProračuna[[#This Row],[Dejanski stroški]]","v":{"v":25,"d":"25 €"}}]
[null,"Vzdrževanje","Prevoz",{"v":100,"d":"100 €"},{"v":50,"d":"50 €"},{"$f":"PodrobnostiProračuna[[#This Row],[Predvideni stroški]]-PodrobnostiProračuna[[#This Row],[Dejanski stroški]]","v":{"v":50,"d":"50 €"}},{"$f":"PodrobnostiProračuna[[#This Row],[Dejanski stroški]]","v":{"v":50,"d":"50 €"}}]
[null,"Parkirnine","Prevoz",null,null,{"$f":"PodrobnostiProračuna[[#This Row],[Predvideni stroški]]-PodrobnostiProračuna[[#This Row],[Dejanski stroški]]","v":{"v":0,"d":"0 €"}},{"$f":"PodrobnostiProračuna[[#This Row],[Dejanski stroški]]","v":{"v":0,"d":"0 €"}}]
[null,"Plačilo prevoznega sredstva","Prevoz",{"v":450,"d":"450 €"},{"v":450,"d":"450 €"},{"$f":"PodrobnostiProračuna[[#This Row],[Predvideni stroški]]-PodrobnostiProračuna[[#This Row],[Dejanski stroški]]","v":{"v":0,"d":"0 €"}},{"$f":"PodrobnostiProračuna[[#This Row],[Dejanski stroški]]","v":{"v":450,"d":"450 €"}}]
[null,"Skupaj",null,{"$f":"SUBTOTAL(109,PodrobnostiProračuna[Predvideni stroški])","v":{"v":7915,"d":"7,915 €"}},{"$f":"SUBTOTAL(109,PodrobnostiProračuna[Dejanski stroški])","v":{"v":7860,"d":"7,860 €"}},{"$f":"SUBTOTAL(109,PodrobnostiProračuna[Razlika])","v":{"v":55,"d":"55 €"}}]

{"sheet":"Dodatni podatki","index":2,"n_rows":15,"n_cols":5,"rows_kept":15}
[null,"Vrtilna tabela za grafikon »Pregled proračuna«",null,null,"Seznam iskanj za kategorijo »Podrobnosti proračuna«"]
[null,"Kategorija","Vsota od Dejanski stroški",null,"Iskanje kategorije proračuna"]
[null,"Otroci",140,null,"Otroci"]
[null,"Zabava",358,null,"Zabava"]
[null,"Hrana",1320,null,"Hrana"]
[null,"Darila in dobrodelnost",125,null,"Darila in dobrodelnost"]
[null,"Bivališče",2702,null,"Bivališče"]
[null,"Zavarovanje",900,null,"Zavarovanje"]
[null,"Posojila",200,null,"Posojila"]
[null,"Osebna nega",140,null,"Osebna nega"]
[null,"Domači ljubljenčki",100,null,"Domači ljubljenčki"]
[null,"Prihranki ali investicije",200,null,"Prihranki ali investicije"]
[null,"Davki",300,null,"Davki"]
[null,"Prevoz",1375,null,"Prevoz"]
[null,"Skupna vsota",7860]